bitfinex/quotes_SOLUSD_20240621
["timestamp","ask_amount","ask_price","bid_price","bid_amount"]
[1718995549555,20.0,131.21,131.15,6.0998]
[1718995550852,20.0,131.21,131.14,6.1001]
[1718995551056,20.0,131.21,131.13,6.1008]
[1718995551231,20.0,131.21,131.12,6.1009]
[1718995551232,45.0,131.2,131.12,6.1009]
[1718995551556,20.0,131.19,131.13,6.1005]
[1718995552953,20.0,131.19,131.14,6.1001]
[1718995553170,20.0,131.21,131.14,6.1001]
[1718995554856,20.0,131.21,131.13,6.1006]
[1718995555363,20.0,131.21,131.14,6.1001]
[1718995556562,20.0,131.21,131.13,6.1006]
[1718995556739,20.0,131.21,131.14,6.1002]
[1718995556943,20.0,131.21,131.14,6.1001]
[1718995557743,20.0,131.21,131.15,6.0998]
[1718995558657,20.0,131.21,131.14,6.1002]
[1718995558833,20.0,131.21,131.13,6.1006]
[1718995559038,20.0,131.21,131.14,6.1002]
[1718995560467,20.0,131.21,131.13,6.1007]
[1718995560669,20.0,131.21,131.09,49.3964]
[1718995560833,45.0,131.2,131.12,6.101]
[1718995561162,20.0,131.19,131.13,6.1008]
[1718995561379,20.0,131.19,131.09,15.2564]
[1718995561380,20.0,131.19,131.12,6.101]
[1718995561555,20.0,131.19,131.11,6.1015]
[1718995561867,20.0,131.19,131.12,6.1012]
[1718995562542,20.0,131.19,131.1,29.36]
[1718995562746,20.0,131.19,131.11,6.1014]
[1718995562973,20.0,131.19,131.12,6.101]
[1718995563945,20.0,131.19,131.09,15.2557]
[1718995564146,15.9868,131.18,131.12,6.1012]
[1718995564349,15.9868,131.18,131.1,6.102]
[1718995564350,20.0,131.17,131.1,6.102]
[1718995564645,20.0,131.17,131.11,6.1016]
[1718995565549,20.0,131.17,131.1,6.102]
[1718995565756,6.2868,131.16,131.08,6.103]
[1718995566067,20.0,131.15,131.08,6.103]
[1718995566276,20.0,131.15,131.09,6.1024]
[1718995566570,20.0,131.15,131.06,49.8756]
[1718995566571,20.0,131.15,131.1,6.1019]
[1718995566769,15.9868,131.18,131.07,22.98]
[1718995566956,15.9868,131.18,131.14,6.1]
[1718995567270,15.9868,131.18,131.14,6.1003]
[1718995567859,15.9868,131.18,131.13,6.1007]
[1718995568169,15.9868,131.18,131.14,6.1002]
[1718995568901,3.9868,131.18,131.14,6.1002]
[1718995570170,3.9868,131.18,131.07,30.5171]
[1718995570378,23.9868,131.18,131.09,6.1024]
[1718995570679,45.0,131.17,131.09,6.1024]
[1718995570967,20.0,131.16,131.09,6.1025]
[1718995571141,6.0167,131.15,131.09,6.1025]
[1718995571346,20.0,131.14,131.04,40.6257]
[1718995571659,10.0035,131.18,131.09,15.2557]
[1718995571967,20.0,131.17,131.12,6.101]
[1718995572269,20.0,131.17,131.11,6.1015]
[1718995572757,10.0035,131.18,131.11,15.2542]
[1718995572962,10.0035,131.18,131.14,6.1]
[1718995573657,22.4772,131.21,131.13,15.2519]
[1718995573877,20.0,131.2,131.15,6.0996]
[1718995574061,20.0,131.2,131.16,6.0993]
[1718995574244,20.0,131.2,131.15,6.0996]
[1718995575156,20.0,131.2,131.14,6.1001]
[1718995575375,20.0,131.2,131.12,6.1008]
[1718995576251,20.0,131.2,131.13,6.1007]
[1718995576450,20.0,131.2,131.08,17.25278761]
[1718995576764,45.0,131.19,131.1,6.1019]
[1718995577071,21.6142,131.17,131.1,6.1019]
[1718995577246,20.0,131.16,131.1,6.1019]
[1718995577844,20.0,131.16,131.07,6.1032]
[1718995578150,20.0,131.16,131.08,6.1028]
[1718995578345,45.0,131.15,131.08,6.1028]
[1718995578560,20.0,131.14,131.09,6.1024]
[1718995579161,20.0,131.16,131.1,6.1021]
[1718995579666,20.0,131.16,131.09,6.1025]
[1718995579980,45.0,131.15,131.07,6.1034]
[1718995580276,20.0,131.14,131.07,6.1034]
[1718995580973,16.5298,131.12,131.04,6.1048]
[1718995581280,16.5298,131.12,131.05,6.1044]
[1718995581452,20.0,131.11,131.06,6.104]
[1718995583668,20.0,131.11,131.05,6.1044]
[1718995584078,45.0,131.1,131.03,6.1053]
[1718995584249,20.0,131.09,131.03,6.1053]
[1718995584864,20.0,131.09,131.01,6.1062]
[1718995585172,20.0,131.09,130.97,34.26]
[1718995585173,16.2375,131.06,130.97,34.26]
[1718995585480,20.0,131.05,130.99,6.1073]
[1718995586274,20.0,131.05,130.98,6.1075]
[1718995586573,20.0,131.05,130.97,6.1079]
[1718995586785,45.0,131.04,130.97,6.1079]
[1718995586980,20.0,131.03,130.97,6.1079]
[1718995587562,20.0,131.03,130.96,6.1085]
[1718995587857,20.0,131.03,130.94,15.2732]
[1718995588181,16.2375,131.06,130.98,15.2694]
[1718995588381,20.0,131.05,131.0,6.1066]
[1718995588688,20.0,131.05,130.94,34.26]
[1718995588689,20.0,131.05,130.99,6.107]
[1718995589067,20.0,131.05,131.0,6.1065]
[1718995590060,20.0,131.05,130.99,6.1071]
[1718995590783,20.0,131.05,130.94,64.8072]
[1718995591162,20.0,131.05,130.98,6.1077]
[1718995592082,20.0,131.05,130.97,6.1081]
[1718995592268,45.0,131.04,130.97,6.1081]
[1718995592461,20.0,131.03,130.97,6.1081]
[1718995592878,20.0,131.03,130.96,6.1085]
[1718995593253,20.0,131.03,130.93,16.1378372]
[1718995593254,20.0,131.03,130.97,6.108]
[1718995594267,20.0,131.03,130.94,15.2731]
[1718995594467,20.0,131.05,130.97,6.1081]
[1718995595060,20.0,131.05,130.94,15.2731]
[1718995595061,20.0,131.05,130.96,6.1085]
[1718995595268,45.0,131.04,130.97,6.1082]
[1718995595472,20.0,131.03,130.97,6.1082]
[1718995597161,16.2375,131.06,130.99,29.42]
[1718995597391,16.2375,131.06,130.99,35.5272]
[1718995597392,20.0,131.05,130.99,35.5272]
[1718995597573,20.0,131.05,131.0,6.1068]
[1718995598065,20.0,131.05,130.98,6.1077]
[1718995598266,263.00845817,131.11,130.98,6.1077]
[1718995598503,45.0,131.1,130.98,6.1077]
[1718995598698,90.92,131.1,130.97,35.5281]
[1718995598942,217.08845817,131.15,131.03,29.42]
[1718995599067,217.08845817,131.15,131.05,6.1042]
[1718995599372,217.08845817,131.15,131.01,6.106]
[1718995599568,320.1475421,131.15,131.02,6.1056]
[1718995600284,45.0,131.14,131.02,6.1056]
[1718995600470,48.05908393,131.14,131.01,6.1062]
[1718995600794,48.05908393,131.14,131.0,6.1064]
[1718995600795,29.42,131.13,131.0,6.1064]
[1718995600981,45.0,131.12,131.0,6.1064]
[1718995601181,12.0468,131.1,130.98,76.81]
[1718995601377,65.0,131.09,130.98,76.81]
[1718995601574,65.0,131.09,131.01,6.1061]
[1718995602287,20.0,131.09,131.06,6.1038]
[1718995602510,20.0,131.09,131.03,15.2625]
[1718995602719,20.0,131.09,131.05,6.1042]
[1718995602898,20.0,131.09,131.04,6.1046]
[1718995603210,20.0,131.09,131.04,6.1047]
[1718995603417,20.0,131.09,131.05,6.1045]
[1718995603720,6.3431,131.1,131.03,6.1052]
[1718995603895,6.3431,131.1,131.04,6.1049]
[1718995604219,6.3431,131.1,131.02,29.42]
[1718995604391,20.0541027,131.15,131.11,6.1013]
[1718995604717,6.3955,131.18,131.1,44.6754]
[1718995604889,6.3955,131.18,131.12,6.1011]
[1718995605795,6.3955,131.18,131.11,6.1016]
[1718995606118,6.3955,131.18,131.06,15.2601]
[1718995606318,45.0,131.17,131.08,6.103]
[1718995606817,45.0,131.17,131.06,6.1036]
[1718995607120,45.0,131.17,131.05,6.1044]
[1718995607121,5.7037,131.16,131.05,6.1044]
[1718995607313,71.5018,131.15,131.06,6.104]
[1718995608199,14.03782467,131.21,131.09,38.2945]
[1718995608396,6.5991,131.24,131.13,15.2519]
[1718995608596,6.5991,131.24,131.16,6.0993]
[1718995608597,20.0,131.23,131.16,6.0993]
[1718995608789,20.0,131.23,131.15,6.0996]
[1718995608996,6.5991,131.24,131.15,6.0996]
[1718995609521,6.5991,131.24,131.12,6.5991]
[1718995609714,45.0,131.23,131.15,6.0998]
[1718995610304,20.0,131.22,131.12,44.7922]
[1718995610504,6.1456,131.27,131.17,39.5044]
[1718995610825,7.9489622,131.29,131.25,6.095]
[1718995610994,7.9489622,131.29,131.19,34.25]
[1718995611200,7.9489622,131.29,131.22,6.0964]
[1718995611507,7.9489622,131.29,131.2,45.0]
[1718995611816,7.9489622,131.29,131.2,60.2436]
[1718995612325,7.9489622,131.29,131.23,6.096]
[1718995612497,7.9489622,131.29,131.2,15.2436]
[1718995612498,7.9489622,131.29,131.22,6.0964]
[1718995613114,7.9489622,131.29,131.17,31.8109]
[1718995613298,7.9489622,131.29,131.18,6.098]
[1718995613299,65.0,131.28,131.18,6.098]
[1718995613510,65.0,131.28,131.19,6.0977]
[1718995613817,65.0,131.28,131.18,6.0983]
[1718995614288,65.0,131.28,131.15,34.25]
[1718995614489,20.0,131.28,131.22,6.0962]
[1718995616121,20.0,131.28,131.21,6.0969]
[1718995616326,20.0,131.28,131.22,6.0966]
[1718995616820,20.0,131.28,131.21,6.0969]
[1718995617820,20.0,131.28,131.17,15.2472]
[1718995618043,20.0,131.28,131.19,6.0976]
[1718995618320,45.0,131.27,131.18,6.0982]
[1718995618502,20.0,131.26,131.17,6.0987]
[1718995618954,45.0,131.25,131.17,6.0987]
[1718995619143,6.1167,131.24,131.17,6.0987]
[1718995619426,26.1167,131.24,131.16,6.0994]
[1718995619932,26.1167,131.24,131.18,6.0981]
[1718995620106,26.1167,131.24,131.18,6.0983]
[1718995620303,26.1167,131.24,131.15,15.2487]
[1718995620504,26.1167,131.24,131.16,6.0991]
[1718995621397,26.1167,131.24,131.16,29.0391]
[1718995621608,26.1167,131.24,131.2,6.0974]
[1718995621609,6.1167,131.24,131.2,6.0974]
[1718995621808,6.4925,131.28,131.17,15.2462]
[1718995622015,20.0,131.27,131.2,6.0974]
[1718995622232,20.0,131.27,131.19,6.0979]
[1718995622732,20.0,131.27,131.2,6.0972]
[1718995623116,20.0,131.27,131.19,6.0979]
[1718995623323,20.0,131.27,131.18,15.2452]
[1718995623645,20.0,131.27,131.21,6.0969]
[1718995623818,6.4925,131.28,131.21,6.0969]
[1718995624135,6.4925,131.28,131.19,6.0978]
[1718995625536,45.0,131.27,131.19,6.0978]
[1718995625706,6.4925,131.28,131.21,6.0969]
[1718995626421,6.4925,131.28,131.22,6.0965]
[1718995626617,6.4925,131.28,131.19,22.94]
[1718995626836,6.4925,131.28,131.23,15.2395]
[1718995627049,6.4925,131.28,131.24,6.0954]
[1718995627238,6.4925,131.28,131.2,39.5515]
[1718995627411,6.4925,131.28,131.25,6.0951]
[1718995627613,6.4925,131.28,131.23,6.0957]
[1718995627914,6.4925,131.28,131.24,6.0956]
[1718995629557,6.4925,131.28,131.22,6.0964]
[1718995629759,6.4925,131.28,131.21,6.0968]
[1718995630135,6.4925,131.28,131.22,6.0965]
[1718995630658,6.4925,131.28,131.21,6.0969]
[1718995631159,6.4925,131.28,131.22,6.0965]
[1718995631357,6.4925,131.28,131.21,6.0968]
[1718995632263,45.0,131.27,131.19,6.0977]
[1718995632437,45.0,131.27,131.18,6.0984]
[1718995632635,5.7037,131.26,131.17,6.0987]
[1718995632836,45.0,131.25,131.17,6.0987]
[1718995633247,45.0,131.25,131.14,15.2506]
[1718995633452,45.0,131.25,131.16,6.0992]
[1718995633654,45.0,131.25,131.13,22.7611]
[1718995634457,45.0,131.25,131.13,38.0131]
[1718995634836,45.0,131.25,131.16,6.0993]
[1718995635748,6.2972,131.24,131.11,49.5041]
[1718995636059,70.7037,131.23,131.14,6.1003]
[1718995637753,70.7037,131.23,131.12,30.5044]
[1718995637953,70.7037,131.23,131.16,6.0992]
[1718995638454,70.7037,131.23,131.11,49.5042]
[1718995639368,70.7037,131.23,131.15,6.0996]
[1718995641056,70.7037,131.23,131.14,6.1001]
[1718995641472,70.7037,131.23,131.14,35.4501]
[1718995642562,25.7037,131.23,131.14,29.35]
[1718995642794,5.7037,131.23,131.17,35.4486]
[1718995643159,5.7037,131.23,131.18,6.0982]
[1718995643373,5.7037,131.23,131.17,29.35]
[1718995644183,5.7037,131.23,131.17,35.4488]
[1718995644677,5.7037,131.23,131.18,6.0984]
[1718995645081,5.7037,131.23,131.17,35.4487]
[1718995645278,5.7037,131.23,131.18,6.0984]
[1718995645503,5.7037,131.23,131.17,29.35]
[1718995645504,5.7037,131.23,131.19,6.0978]
[1718995645805,5.7037,131.23,131.17,29.35]
[1718995646003,5.7037,131.23,131.19,6.0977]
[1718995646408,6.2972,131.24,131.17,44.5964]
[1718995646705,5.7037,131.26,131.21,6.0968]
[1718995646910,5.7037,131.26,131.22,6.0966]
[1718995647583,7.94546268,131.3,131.25,6.0952]
[1718995647814,7.94546268,131.3,131.23,35.4461]
[1718995648092,7.94546268,131.3,131.23,29.35]
[1718995649114,7.94546268,131.3,131.24,6.0956]
[1718995649297,7.94546268,131.3,131.23,35.446]
[1718995649605,7.94546268,131.3,131.23,29.35]
[1718995649784,7.94546268,131.3,131.24,15.2382]
[1718995649983,11.9468,131.31,131.23,29.35]
[1718995650196,11.9468,131.31,131.26,6.0947]
[1718995650395,11.9468,131.31,131.23,22.94]
[1718995650614,12.364,131.36,131.3,6.0927]
[1718995650906,12.364,131.36,131.31,6.5833069]
[1718995651213,12.364,131.36,131.31,0.4911069]
[1718995651388,12.364,131.36,131.3,29.35]
[1718995651600,12.364,131.36,131.31,0.49168181]
[1718995651802,11.8264,131.39,131.32,6.0917]
[1718995653713,11.8264,131.39,131.33,6.0914]
[1718995654700,11.8264,131.39,131.29,16.1288]
[1718995655007,11.8264,131.39,131.3,6.0927]
[1718995655203,11.8264,131.39,131.28,34.15]
[1718995655204,11.8264,131.39,131.31,6.0921]
[1718995655430,45.0,131.38,131.31,6.0921]
[1718995656232,11.8264,131.39,131.28,34.15]
[1718995656233,11.8264,131.39,131.32,6.0918]
[1718995656413,11.8264,131.39,131.33,6.0913]
[1718995656921,11.8264,131.39,131.32,6.0919]
[1718995657301,11.8264,131.39,131.28,34.15]
[1718995657705,11.8264,131.39,131.28,49.3835]
[1718995658101,11.8264,131.39,131.32,6.0919]
[1718995658332,45.0,131.38,131.26,16.6258]
[1718995658509,65.0,131.38,131.29,6.0933]
[1718995658910,65.0,131.38,131.28,6.0936]
[1718995659128,65.0,131.38,131.29,6.0933]
[1718995660012,65.0,131.38,131.3,6.0928]
[1718995660215,65.0,131.38,131.29,6.0932]
[1718995660515,65.0,131.38,131.26,16.6258]
[1718995660815,65.0,131.38,131.28,6.0935]
[1718995661737,65.0,131.38,131.27,6.0941]
[1718995662119,11.8382,131.37,131.26,6.0946]
[1718995662437,65.0,131.36,131.26,6.0946]
[1718995663129,65.0,131.36,131.23,31.5823]
[1718995663330,65.0,131.36,131.21,53.4241]
[1718995663331,12.1119,131.35,131.21,15.2426]
[1718995663643,65.0,131.36,131.19,44.6137]
[1718995663644,12.1119,131.33,131.19,44.6137]
[1718995663846,12.1119,131.33,131.26,15.2358]
[1718995664339,12.1119,131.33,131.24,15.2392]
[1718995664645,12.1119,131.33,131.26,6.0943]
[1718995665239,12.1119,131.33,131.26,6.0947]
[1718995666413,12.1119,131.33,131.22,34.15]
[1718995666613,45.0,131.32,131.24,6.0954]
[1718995667943,45.0,131.32,131.23,6.096]
[1718995668234,20.0,131.31,131.19,55.8237]
[1718995668438,45.0,131.3,131.22,6.0966]
[1718995669641,45.0,131.3,131.24,6.0956]
[1718995670619,20.0,131.31,131.2,15.2428]
[1718995670945,12.1119,131.33,131.2,15.2428]
[1718995670946,20.0,131.32,131.2,15.2428]
[1718995671116,20.0,131.32,131.23,6.0958]
[1718995671526,20.0,131.32,131.22,6.0965]
[1718995671843,45.0,131.31,131.22,6.0965]
[1718995672047,20.0,131.3,131.22,6.0965]
[1718995672626,20.0,131.3,131.2,6.0973]
[1718995672627,11.8253,131.29,131.2,6.0973]
[1718995672948,65.0,131.28,131.16,40.3117]
[1718995673244,65.0,131.28,131.2,6.0972]
[1718995673449,65.0,131.28,131.19,6.0977]
[1718995673828,65.0,131.28,131.2,6.0975]
[1718995674346,65.0,131.28,131.19,6.0978]
[1718995674525,65.0,131.28,131.2,6.0975]
[1718995675056,65.0,131.28,131.21,6.097]
[1718995675339,11.8253,131.29,131.22,6.0965]
[1718995675854,11.8253,131.29,131.22,6.0964]
[1718995676147,11.8253,131.29,131.21,6.0969]
[1718995676526,11.8253,131.29,131.22,6.0964]
[1718995678750,11.8253,131.29,131.21,6.097]
[1718995678930,45.0,131.28,131.21,6.097]
[1718995679125,11.8253,131.29,131.22,6.0964]
[1718995679545,11.8253,131.29,131.21,6.0968]
[1718995679755,45.0,131.28,131.21,6.0968]
[1718995680431,45.0,131.28,131.16,49.3982]
[1718995680635,20.0,131.27,131.18,6.0981]
[1718995680829,45.0,131.26,131.15,16.1315]
[1718995681037,20.0,131.27,131.2,6.0974]
[1718995681240,20.0,131.28,131.2,6.0974]
[1718995681447,45.0,131.27,131.2,6.0974]
[1718995682053,45.0,131.27,131.21,6.097]
[1718995682255,45.0,131.27,131.2,6.0973]
[1718995682441,45.0,131.27,131.17,15.2463]
[1718995682646,45.0,131.27,131.21,6.0966]
[1718995682868,20.0,131.28,131.24,6.0955]
[1718995683079,11.8253,131.29,131.24,6.0955]
[1718995683363,11.8253,131.29,131.23,29.31]
[1718995684170,11.8253,131.29,131.2,29.31]
[1718995684370,65.0,131.28,131.2,6.0971]
[1718995684548,65.0,131.28,131.21,6.0969]
[1718995685263,65.0,131.28,131.2,6.0975]
[1718995685865,65.0,131.28,131.19,6.0978]
[1718995686052,65.0,131.28,131.18,29.31]
[1718995686453,65.0,131.28,131.2,6.0974]
[1718995687845,20.0,131.28,131.18,15.2452]
[1718995688160,11.8253,131.29,131.23,6.0961]
[1718995688376,11.8253,131.29,131.21,29.31]
[1718995688857,11.8253,131.29,131.21,59.8869]
[1718995689053,11.8095,131.32,131.24,6.0954]
[1718995689274,31.8095,131.32,131.26,6.0944]
[1718995689467,11.8095,131.32,131.26,6.0944]
[1718995690190,11.8095,131.32,131.24,29.31]
[1718995690363,11.8628,131.39,131.31,29.31]
[1718995691484,11.8628,131.39,131.24,21.4812]
[1718995691688,65.0,131.38,131.24,21.4812]
[1718995692391,65.0,131.38,131.27,6.0941]
[1718995692904,65.0,131.38,131.28,6.0935]
[1718995693087,11.8628,131.39,131.29,45.0]
[1718995693288,11.8628,131.39,131.28,38.1735]
[1718995693289,20.0,131.38,131.28,38.1735]
[1718995693491,20.0,131.38,131.31,6.0922]
[1718995693692,20.0,131.38,131.33,6.0913]
[1718995693867,20.0,131.38,131.32,6.0918]
[1718995694189,6.0897,131.37,131.32,6.0918]
[1718995694886,6.0897,131.37,131.28,22.94]
[1718995694887,6.0897,131.37,131.31,6.0923]
[1718995696590,0.8627372,131.4,131.32,44.496]
[1718995696802,0.8627372,131.4,131.36,6.0896]
[1718995698104,0.8627372,131.4,131.32,21.556]
[1718995698105,0.8627372,131.4,131.35,6.0905]
[1718995700101,0.8627372,131.4,131.35,22.94]
[1718995700285,0.8627372,131.4,131.39,6.0887]
[1718995700481,0.8627372,131.4,131.38,6.0889]
[1718995701888,0.8627372,131.4,131.38,45.0518]
[1718995702605,7.93200579,131.5,131.38,145.0518]
[1718995702913,6.0832,131.51,131.45,6.0857]
[1718995703091,0.8627372,131.53,131.46,45.1221]
[1718995703290,0.8627372,131.53,131.46,22.1821]
[1718995703604,0.8627372,131.53,131.52,6.0827]
[1718995704222,7.92446991,131.65,131.48,111.05433853]
[1718995704429,0.8627372,131.66,131.59,6.0793]
[1718995704728,6.9390372,131.66,131.6,11.05433853]
[1718995704933,0.8627372,131.66,131.59,11.05433853]
[1718995705111,6.0767,131.65,131.59,11.05433853]
[1718995705312,6.0776,131.63,131.59,11.05433853]
[1718995705515,6.0776,131.63,131.56,6.0805]
[1718995705516,6.0776,131.63,131.6,11.05433853]
[1718995705726,0.8627372,131.66,131.58,11.05433853]
[1718995705927,6.0781,131.62,131.58,11.05433853]
[1718995706234,15.1943,131.63,131.58,11.05433853]
[1718995706535,6.0794,131.59,131.56,11.05433853]
[1718995707329,6.0786,131.61,131.58,11.05433853]
[1718995707541,6.0786,131.61,131.59,11.05433853]
[1718995707833,6.0786,131.61,131.54,6.0815]
[1718995708337,6.0786,131.61,131.51,49.3676]
[1718995708536,6.0791,131.6,131.54,6.0816]
[1718995708718,15.1923,131.65,131.55,6.0813]
[1718995708915,6.079,131.6,131.53,6.0818]
[1718995709117,6.079,131.6,131.52,45.0]
[1718995709427,20.0,131.64,131.51,34.16]
[1718995709641,6.0796,131.59,131.52,6.0822]
[1718995709817,6.08,131.58,131.48,15.2103]
[1718995710012,6.0804,131.57,131.48,15.2103]
[1718995710211,6.081,131.56,131.49,6.084]
[1718995710410,6.081,131.56,131.46,56.3421]
[1718995710411,6.081,131.56,131.5,6.0835]
[1718995710620,6.0804,131.57,131.51,6.0831]
[1718995711006,6.0808,131.56,131.47,15.2124]
[1718995711218,15.1989,131.59,131.46,56.3421]
[1718995711412,6.081,131.56,131.49,6.0837]
[1718995711831,301.6458372,131.66,131.54,34.16]
[1718995711832,0.8627372,131.66,131.54,34.16]
[1718995712038,0.8627372,131.66,131.62,6.0776]
[1718995712222,0.8627372,131.66,131.58,15.1996]
[1718995712428,0.8627372,131.66,131.62,6.0777]
[1718995712725,0.8627372,131.66,131.56,6.3272]
[1718995712926,0.8627372,131.66,131.62,6.0776]
[1718995713132,0.8627372,131.66,131.58,34.16]
[1718995713133,0.8627372,131.66,131.61,15.1961]
[1718995713318,0.8627372,131.66,131.65,6.0767]
[1718995713737,0.8627372,131.66,131.65,51.0767]
[1718995713930,0.8627372,131.66,131.65,51.2467]
[1718995714136,0.8627372,131.66,131.65,6.0767]
[1718995714320,0.8627372,131.66,131.65,51.0767]
[1718995715131,0.8627372,131.66,131.65,51.4167]
[1718995715331,0.8627372,131.66,131.65,51.0767]
[1718995716132,0.8627372,131.66,131.64,15.1779]
[1718995716336,0.8627372,131.66,131.6,33.98]
[1718995716539,0.8627372,131.66,131.65,6.0767]
[1718995718143,0.8627372,131.66,131.6,64.408036]
[1718995718317,0.8627372,131.66,131.61,45.0]
[1718995718516,0.8627372,131.66,131.65,6.0767]
[1718995720025,0.8627372,131.66,131.64,15.1799]
[1718995720343,0.8627372,131.66,131.63,1.14572612]
[1718995720651,0.8627372,131.66,131.63,7.22322612]
[1718995720826,0.8627372,131.66,131.65,6.0767]
[1718995721023,0.8627372,131.66,131.64,6.077]
[1718995721322,0.8627372,131.66,131.65,6.0767]
[1718995721527,0.8627372,131.66,131.6,33.98]
[1718995721735,0.8627372,131.66,131.62,6.078]
[1718995721949,0.8627372,131.66,131.59,15.1979]
[1718995722160,6.9390372,131.66,131.56,36.7314]
[1718995722319,0.8627372,131.66,131.57,20.0]
[1718995722849,0.8627372,131.66,131.65,21.2684]
[1718995723032,0.8627372,131.66,131.65,6.0767]
[1718995723441,0.8627372,131.66,131.64,6.077]
[1718995723750,0.8627372,131.66,131.63,6.0774]
[1718995724044,0.8627372,131.66,131.64,6.077]
[1718995724351,0.8627372,131.66,131.63,6.0774]
[1718995724851,0.8627372,131.66,131.63,22.94]
[1718995725148,0.8627372,131.66,131.65,6.0767]
[1718995725519,0.8627372,131.66,131.64,6.077]
[1718995725724,0.8627372,131.66,131.65,6.0767]
[1718995725945,0.8627372,131.66,131.64,6.077]
[1718995726448,0.8627372,131.66,131.65,6.0767]
[1718995728320,0.8627372,131.66,131.65,29.1867]
[1718995728534,3.72e-05,131.66,131.65,74.1867]
[1718995728743,266.4705,131.79,131.7,22.94]
[1718995729060,6.0715,131.77,131.68,15.1872]
[1718995729220,6.9327372,131.8,131.74,6.0723]
[1718995729550,6.0708,131.78,131.71,15.1839]
[1718995729843,6.0714,131.77,131.68,15.1871]
[1718995730022,6.0712,131.77,131.72,6.0733]
[1718995730224,6.0724,131.75,131.67,33.98]
[1718995730552,6.0723,131.75,131.69,6.0747]
[1718995731230,15.1773,131.78,131.69,6.0747]
[1718995731547,6.0728,131.74,131.68,6.0751]
[1718995731744,6.073,131.73,131.68,6.0751]
[1718995732127,31.2126372,131.8,131.7,6.0742]
[1718995732334,6.0712,131.77,131.72,6.0734]
[1718995733134,6.0712,131.77,131.71,6.0737]
[1718995733640,35.1757,131.79,131.71,6.0737]
[1718995733641,6.0716,131.76,131.71,6.0737]
[1718995734143,0.8627372,131.8,131.7,38.1259]
[1718995734744,6.0709,131.78,131.72,6.0733]
[1718995734972,6.0709,131.78,131.66,133.95]
[1718995734973,16.0372372,131.8,131.66,33.95]
[1718995735177,16.0372372,131.8,131.68,15.1873]
[1718995735357,6.0713,131.77,131.72,6.0731]
[1718995735680,6.0718,131.76,131.7,6.0742]
[1718995735875,0.8627372,131.8,131.69,22.94]
[1718995736176,6.0715,131.77,131.72,6.0734]
[1718995736478,6.0707,131.78,131.72,6.073]
[1718995736786,6.9329372,131.8,131.74,6.0723]
[1718995736951,6.0715,131.77,131.68,45.5635]
[1718995737158,16.0377372,131.8,131.68,45.5635]
[1718995737689,6.0719,131.76,131.7,6.0742]
[1718995737850,16.0377372,131.8,131.72,6.0732]
[1718995738257,6.0713,131.77,131.71,6.0738]
[1718995738481,16.0377372,131.8,131.71,6.0738]
[1718995738482,6.0718,131.76,131.71,6.0738]
[1718995738780,6.0713,131.77,131.71,6.0738]
[1718995739156,6.0717,131.76,131.71,6.0738]
[1718995739472,16.0377372,131.8,131.66,33.95]
[1718995739473,31.2132372,131.8,131.69,6.0745]